bitfinex-derivatives/quotes_SOLF0:USTF0_20250808
["timestamp","ask_amount","ask_price","bid_price","bid_amount"]
[1754667254109,3.3,175.29,175.24,3.09]
[1754667254314,3.3,175.28,175.24,8.7955]
[1754667254509,3.3,175.28,175.26,3.09]
[1754667254713,3.3,175.28,175.24,3.09]
[1754667255014,2.8355749,175.3,175.26,6.66391204]
[1754667255015,7.51631815,175.3,175.26,6.66391204]
[1754667255212,7.51631815,175.31,175.27,3.09]
[1754667255408,4.68074325,175.31,175.28,3.09]
[1754667255612,7.51631815,175.31,175.28,3.09]
[1754667255916,7.51631815,175.31,175.27,6.66391204]
[1754667255917,4.68074325,175.31,175.3,3.09]
[1754667256214,7.51631815,175.32,175.29,6.66391204]
[1754667256417,7.98074325,175.31,175.25,6.66391204]
[1754667256604,3.3,175.3,175.25,6.66391204]
[1754667256809,3.3,175.27,175.25,6.66391204]
[1754667257110,3.3,175.3,175.25,6.66391204]
[1754667257309,10.81631815,175.32,175.28,5.7041]
[1754667257607,2.8355749,175.31,175.27,6.66391204]
[1754667257814,4.68074325,175.33,175.29,6.66391204]
[1754667258114,4.68074325,175.33,175.3,3.09]
[1754667258310,10.81631815,175.34,175.31,3.09]
[1754667258512,2.8355749,175.33,175.32,3.09]
[1754667258712,7.51631815,175.35,175.32,3.09]
[1754667258916,6.1355749,175.35,175.33,3.09]
[1754667259122,2.8355749,175.35,175.33,6.66391204]
[1754667259414,9.6538219,175.39,175.33,6.66391204]
[1754667259415,2.8355749,175.38,175.33,6.66391204]
[1754667259615,3.3,175.37,175.32,6.66391204]
[1754667259816,3.3,175.36,175.32,9.75391204]
[1754667260016,3.3,175.35,175.31,107.12]
[1754667260413,3.3,175.35,175.31,110.21]
[1754667260812,3.3,175.35,175.31,107.12]
[1754667261013,3.3,175.35,175.29,6.66391204]
[1754667261218,3.3,175.35,175.28,110.19]
[1754667261219,3.3,175.34,175.28,110.19]
[1754667261716,5.7032,175.32,175.28,110.19]
[1754667262018,3.3,175.3,175.28,110.19]
[1754667262616,3.3,175.29,175.28,107.1]
[1754667263718,6.66391204,175.29,175.18,3.09]
[1754667264015,3.3,175.26,175.19,110.21]
[1754667264218,3.3,175.25,175.22,5.7063]
[1754667264420,3.3,175.23,175.21,3.09]
[1754667264615,3.3,175.22,175.2,3.09]
[1754667265120,3.3,175.21,175.19,107.12]
[1754667265518,3.3,175.21,175.19,110.21]
[1754667265720,3.3,175.21,175.2,3.09]
[1754667266417,3.3,175.22,175.2,110.21]
[1754667267122,2.84446218,175.26,175.2,112.827]
[1754667267321,3.3,175.23,175.21,3.09]
[1754667267517,3.3,175.25,175.22,3.09]
[1754667267822,3.3,175.24,175.22,3.09]
[1754667268518,3.3,175.22,175.2,107.12]
[1754667268821,3.3,175.22,175.2,110.21]
[1754667269024,3.3,175.25,175.22,3.09]
[1754667269218,3.3,175.27,175.22,3.09]
[1754667269723,3.3,175.26,175.22,3.09]
[1754667269922,8.54837282,175.27,175.22,3.09]
[1754667270122,3.3,175.24,175.22,3.09]
[1754667271012,2.84337282,175.26,175.2,107.12]
[1754667271013,8.54837282,175.26,175.2,107.12]
[1754667271218,3.3,175.25,175.2,110.21]
[1754667271423,3.3,175.25,175.21,3.09]
[1754667271919,3.3,175.24,175.22,3.09]
[1754667272423,3.3,175.23,175.22,3.09]
[1754667272722,3.3,175.23,175.2,107.12]
[1754667272924,3.3,175.23,175.21,3.09]
[1754667273227,3.3,175.26,175.2,107.12]
[1754667273525,5.7054,175.25,175.2,107.12]
[1754667273726,3.3,175.23,175.2,107.12]
[1754667275027,3.3,175.22,175.2,115.9169]
[1754667275326,3.3,175.23,175.2,107.12]
[1754667275529,6.14333408,175.23,175.19,235.0]
[1754667275822,2.84333408,175.24,175.19,341.92]
[1754667276126,3.07,175.21,175.2,3.09]
[1754667276326,3.07,175.23,175.2,3.04]
[1754667276522,3.07,175.23,175.21,3.04]
[1754667276722,3.07,175.23,175.19,106.92]
[1754667276723,3.07,175.23,175.19,113.58391204]
[1754667277027,3.07,175.25,175.23,3.04]
[1754667277224,4.68074325,175.26,175.23,3.04]
[1754667277521,4.68074325,175.26,175.22,106.9]
[1754667277522,3.07,175.24,175.22,106.9]
[1754667277728,3.07,175.23,175.22,106.9]
[1754667278821,3.07,175.23,175.22,109.94]
[1754667279126,2.84648483,175.25,175.24,3.04]
[1754667279322,3.07,175.27,175.25,3.04]
[1754667279525,7.75074325,175.28,175.26,109.98]
[1754667279823,3.07,175.27,175.26,109.98]
[1754667280019,3.07,175.27,175.26,106.94]
[1754667280424,5.92212151,175.27,175.26,106.94]
[1754667280818,10.60286476,175.27,175.26,106.94]
[1754667281022,3.07,175.27,175.26,106.94]
[1754667281226,10.60286476,175.28,175.26,106.94]
[1754667281422,7.75074325,175.29,175.27,3.04]
[1754667281725,3.07,175.27,175.26,106.94]
[1754667282324,4.68074325,175.27,175.26,106.9]
[1754667282928,7.75074325,175.27,175.26,106.9]
[1754667283333,3.07,175.27,175.26,106.9]
[1754667283528,7.75074325,175.27,175.26,106.9]
[1754667284034,5.92326068,175.27,175.26,106.9]
[1754667284430,11.62796068,175.27,175.26,106.9]
[1754667285141,2.85326068,175.27,175.26,113.56391204]
[1754667285343,7.55548052,175.3,175.26,113.56391204]
[1754667285644,5.92326068,175.29,175.26,113.56391204]
[1754667285836,3.07,175.28,175.27,3.04]
[1754667286034,2.85326068,175.29,175.27,3.04]
[1754667286233,2.85326068,175.29,175.28,3.04]
[1754667286234,7.55728604,175.29,175.28,3.04]
[1754667286428,4.70221984,175.29,175.28,3.04]
[1754667286629,2.8550662,175.3,175.28,6.66391204]
[1754667286834,2.8550662,175.3,175.29,115.664]
[1754667287039,7.55906901,175.32,175.3,3.04]
[1754667287234,4.70221984,175.35,175.31,6.66391204]
[1754667287430,4.70221984,175.35,175.34,15.40631204]
[1754667287640,4.70221984,175.36,175.35,3.04]
[1754667287940,4.70221984,175.37,175.36,3.04]
[1754667288138,6.3538219,175.39,175.36,3.04]
[1754667288139,4.70221984,175.39,175.37,3.04]
[1754667288331,4.70221984,175.4,175.38,116.72391204]
[1754667288530,4.70221984,175.4,175.39,107.02]
[1754667288736,4.70221984,175.4,175.39,110.06]
[1754667289035,4.70221984,175.41,175.39,107.02]
[1754667289240,3.07,175.4,175.39,107.02]
[1754667289430,3.07,175.4,175.38,6.66391204]
[1754667289631,3.07,175.4,175.39,107.0]
[1754667290038,3.07,175.4,175.36,9.70391204]
[1754667290345,3.07,175.38,175.37,106.98]
[1754667290544,4.70221984,175.4,175.37,110.02]
[1754667290738,3.07,175.39,175.37,110.02]
[1754667291045,7.77221984,175.41,175.39,3.04]
[1754667291241,7.77221984,175.41,175.4,106.94]
[1754667291639,7.77221984,175.41,175.39,3.04]
[1754667291941,7.77221984,175.41,175.4,106.94]
[1754667292349,3.07,175.41,175.4,106.94]
[1754667292852,7.77221984,175.43,175.41,3.04]
[1754667293146,3.07,175.41,175.4,106.94]
[1754667293651,4.70221984,175.46,175.43,3.04]
[1754667293850,4.70221984,175.46,175.45,3.04]
[1754667294246,4.70221984,175.47,175.44,106.88]
[1754667294443,7.77221984,175.47,175.44,106.88]
[1754667294754,7.77221984,175.47,175.46,3.04]
[1754667294953,3.07,175.47,175.44,106.88]
[1754667295349,3.07,175.46,175.44,109.92]
[1754667295553,3.07,175.48,175.44,106.88]
[1754667295751,4.70221984,175.48,175.44,106.88]
[1754667295952,3.07,175.46,175.44,106.88]
[1754667296251,5.6994,175.44,175.4,9.70391204]
[1754667296452,7.77221984,175.47,175.42,3.04]
[1754667296453,4.70221984,175.47,175.42,3.04]
[1754667296652,4.70221984,175.47,175.41,106.94]
[1754667296653,4.70221984,175.46,175.43,0.03865418]
[1754667296848,5.6992,175.44,175.43,0.03865418]
[1754667297052,8.7692,175.44,175.43,0.03865418]
[1754667298759,3.07,175.44,175.43,0.03865418]
[1754667299250,3.07,175.45,175.43,3.07865418]
[1754667299451,3.07,175.45,175.43,109.93865418]
[1754667299647,3.11158445,175.47,175.44,3.04]
[1754667299854,3.11158445,175.47,175.45,3.04]
[1754667300252,3.11158445,175.47,175.43,106.89865418]
[1754667300453,3.11158445,175.47,175.46,3.04]
[1754667300657,5.6992,175.44,175.43,3.07865418]
[1754667300959,0.04158445,175.47,175.43,106.93865418]
[1754667301147,3.07,175.44,175.43,106.93865418]
[1754667301864,8.7692,175.44,175.43,0.03865418]
[1754667302553,3.07,175.46,175.44,3.04]
[1754667302954,0.04158445,175.47,175.43,0.03865418]
[1754667303152,3.11158445,175.47,175.44,3.04]
[1754667303351,0.04158445,175.47,175.45,5.6988]
[1754667303658,8.80978445,175.47,175.44,9.70391204]
[1754667303864,3.11158445,175.47,175.45,3.04]
[1754667304654,0.04158445,175.47,175.46,109.92]
[1754667305157,0.04158445,175.47,175.46,116.58391204]
[1754667305755,0.04158445,175.47,175.46,109.92]
[1754667305953,0.04158445,175.47,175.46,106.88]
[1754667306149,3.32158445,175.47,175.46,106.88]
[1754667307461,3.32158445,175.47,175.46,110.19]
[1754667307660,0.04158445,175.47,175.46,110.19]
[1754667308260,0.04158445,175.47,175.46,115.8885]
[1754667308651,0.04158445,175.47,175.46,110.19]
[1754667308854,0.04158445,175.47,175.46,115.8885]
[1754667309054,0.04158445,175.47,175.46,110.19]
[1754667309651,0.04158445,175.47,175.46,110.09]
[1754667310252,0.04158445,175.47,175.46,116.75391204]
[1754667310464,0.04158445,175.47,175.46,122.45241204]
[1754667310756,3.28,175.62,175.47,3.31]
[1754667310956,4.70221984,175.66,175.6,6.66391204]
[1754667311162,4.70221984,175.67,175.61,116.87391204]
[1754667311363,3.28,175.66,175.61,9.97391204]
[1754667311564,5.6928,175.64,175.61,3.31]
[1754667311862,3.28,175.67,175.62,107.23994252]
[1754667312062,5.693,175.63,175.62,0.03994252]
[1754667312258,3.28,175.66,175.62,0.03994252]
[1754667312857,8.973,175.63,175.62,0.03994252]
[1754667313261,3.28,175.63,175.62,0.03994252]
[1754667313865,8.973,175.63,175.62,0.03994252]
[1754667315660,3.28,175.65,175.62,0.03994252]
[1754667315865,3.28,175.65,175.63,107.26]
[1754667316165,5.693,175.63,175.62,107.24]
[1754667316363,3.28,175.63,175.58,3.31]
[1754667316667,8.973,175.63,175.62,0.04359832]
[1754667316854,9.94391204,175.63,175.57,107.28]
[1754667317059,3.28,175.62,175.57,107.28]
[1754667317468,3.28,175.62,175.57,110.59]
[1754667317662,5.6936,175.61,175.59,3.31]
[1754667317857,3.28,175.64,175.59,3.31]
[1754667318660,3.28,175.7,175.63,5.693]
[1754667318868,5.6914,175.68,175.63,117.19391204]
[1754667319158,3.28,175.7,175.63,117.19391204]
[1754667319467,3.28,175.68,175.6,3.31]
[1754667319672,3.28,175.64,175.55,3.31]
[1754667319866,3.28,175.62,175.57,107.26]
[1754667320168,3.28,175.59,175.57,107.26]
[1754667320367,3.28,175.58,175.57,107.26]
[1754667320769,8.9749,175.58,175.56,110.6336172]
[1754667320965,0.03877267,175.61,175.56,107.3236172]
[1754667321167,8.975,175.57,175.56,0.0436172]
[1754667321569,3.28,175.59,175.57,3.31]
[1754667322073,3.28,175.59,175.58,3.31]
[1754667322466,3.28,175.57,175.56,0.0436172]
[1754667323769,8.975,175.57,175.56,0.0436172]
[1754667324167,8.975,175.57,175.56,1.72e-05]
[1754667324473,8.975,175.57,175.5,3.31]
[1754667324474,5.6965,175.53,175.5,3.31]
[1754667324668,3.28,175.53,175.52,107.2]
[1754667324871,6.66391204,175.59,175.52,110.51]
[1754667325074,3.28,175.54,175.52,110.51]
[1754667325276,3.28,175.53,175.52,107.2]
[1754667326176,0.03770976,175.54,175.52,107.2]
[1754667326376,0.03770976,175.54,175.53,3.31]
[1754667326677,3.28,175.53,175.52,107.2]
[1754667326875,3.28,175.53,175.46,3.31]
[1754667327070,3.28,175.52,175.45,6.67]
[1754667327274,3.28,175.46,175.45,6.67]
[1754667327476,3.28,175.46,175.45,114.01]
[1754667328068,0.03787266,175.47,175.45,114.01]
[1754667328275,0.03787266,175.47,175.45,117.32]
[1754667328474,3.31787266,175.47,175.45,117.32]
[1754667329672,9.01607266,175.47,175.45,117.32]
[1754667329872,3.31787266,175.47,175.45,117.32]
[1754667330575,3.28,175.46,175.45,114.01]
[1754667331075,3.31787266,175.47,175.45,117.32]
[1754667331571,3.31787266,175.47,175.45,6.67]
[1754667331572,3.28,175.46,175.45,6.67]
[1754667331770,3.28,175.46,175.45,4.24159833]
[1754667332175,8.9785,175.46,175.45,4.24159833]
[1754667332377,3.28,175.46,175.45,4.24159833]
[1754667332677,3.31787266,175.47,175.45,7.55159833]
[1754667332882,0.03787266,175.47,175.46,3.31]
[1754667333475,3.28,175.46,175.45,111.50159833]
[1754667334673,8.9785,175.46,175.45,111.50159833]
[1754667334879,8.9785,175.46,175.45,107.22570069]
[1754667335772,3.28,175.42,175.38,6.66391204]
[1754667335980,3.28,175.42,175.4,3.31]
[1754667336176,3.28,175.42,175.39,107.28]
[1754667336481,0.04116301,175.43,175.41,3.09]
[1754667336684,0.04116301,175.43,175.42,117.01391204]
[1754667337779,3.15,175.42,175.36,3.09]
[1754667337980,6.66391204,175.41,175.33,3.09]
[1754667338182,5.7018,175.36,175.33,3.09]
[1754667338378,3.15,175.35,175.34,107.48]
[1754667338574,3.15,175.37,175.34,110.57]
[1754667338778,0.03912887,175.36,175.35,3.09]
[1754667338985,0.03912887,175.36,175.34,107.48]
[1754667339188,3.18912887,175.36,175.34,110.57]
[1754667339386,3.15,175.35,175.34,107.48]
[1754667339686,3.15,175.35,175.3,110.53]
[1754667339877,3.15,175.34,175.31,3.09]
[1754667340082,0.03912887,175.36,175.31,3.09]
[1754667340380,8.8528,175.33,175.31,3.09]
[1754667340688,3.15,175.35,175.31,3.09]
[1754667341184,3.15,175.33,175.31,3.09]
[1754667341682,3.15,175.33,175.3,114.10391204]
[1754667341880,0.03912887,175.36,175.32,6.66391204]
[1754667342080,0.03912887,175.36,175.35,3.09]
[1754667342280,0.03912887,175.36,175.35,107.4]
[1754667342281,3.18912887,175.36,175.35,107.4]
[1754667342982,0.03912887,175.36,175.35,107.4]
[1754667343185,0.03912887,175.36,175.35,110.49]
[1754667343576,0.03912887,175.36,175.35,107.4]
[1754667343785,3.18912887,175.36,175.35,107.4]
[1754667345577,3.18912887,175.36,175.35,110.49]
[1754667345578,0.03912887,175.36,175.35,110.49]
[1754667345984,3.18912887,175.36,175.35,107.4]
[1754667346991,0.03912887,175.36,175.35,110.49]
[1754667347983,0.03912887,175.36,175.35,116.1921]
[1754667348186,2.87212045,175.45,175.36,3.09]
[1754667348391,3.15,175.42,175.4,3.09]
[1754667348589,3.15,175.42,175.4,110.39]
[1754667349189,3.15,175.41,175.4,107.3]
[1754667349690,3.15,175.41,175.38,3.09]
[1754667349691,3.15,175.41,175.38,107.28]
[1754667349892,3.15,175.41,175.33,6.66391204]
[1754667350093,3.15,175.41,175.34,107.3]
[1754667350391,5.7016,175.37,175.34,107.3]
[1754667350592,3.15,175.4,175.34,107.3]
[1754667350891,3.15,175.39,175.34,107.3]
[1754667351086,5.7017,175.37,175.34,107.3]
[1754667351286,2.87212045,175.4,175.34,107.3]
[1754667351489,3.15,175.35,175.34,107.3]
[1754667351883,2.87212045,175.4,175.34,107.3]
[1754667352085,3.15,175.4,175.34,107.3]
[1754667352693,3.15,175.4,175.34,110.39]
[1754667353096,3.15,175.36,175.34,110.39]
[1754667353297,3.15,175.35,175.34,107.3]
[1754667354991,8.8515,175.37,175.34,110.39]
[1754667355288,3.15,175.37,175.35,3.09]
[1754667355484,11.36344382,175.43,175.34,107.3]
[1754667355485,2.87212045,175.39,175.34,107.3]
[1754667355689,3.15,175.42,175.34,110.39]
[1754667355893,3.15,175.41,175.34,110.39]
[1754667356092,3.15,175.41,175.35,3.09]
[1754667356287,3.15,175.41,175.36,3.09]
[1754667356493,3.15,175.41,175.38,3.09]
[1754667356687,3.15,175.41,175.37,113.94391204]
[1754667356893,3.15,175.41,175.39,3.09]
[1754667357097,8.8498,175.42,175.4,3.09]
[1754667357401,3.15,175.42,175.4,3.09]
[1754667357900,3.15,175.45,175.4,3.09]
[1754667358096,3.15,175.45,175.39,6.66391204]
[1754667358401,3.15,175.42,175.4,3.09]
[1754667358600,3.15,175.44,175.42,3.09]
[1754667358795,4.69953178,175.49,175.41,6.66391204]
[1754667358796,7.56915292,175.49,175.41,6.66391204]
[1754667359099,3.15,175.41,175.4,107.38]
[1754667359502,3.15,175.41,175.37,117.09391204]
[1754667359799,3.15,175.41,175.35,3.09]
[1754667360003,3.15,175.36,175.34,110.43]
[1754667360501,3.15,175.36,175.35,3.09]
[1754667360700,3.15,175.36,175.34,107.34]
[1754667360898,0.04187086,175.37,175.34,107.34]
[1754667361299,3.15,175.35,175.34,107.34]
[1754667362700,8.8521,175.35,175.34,107.34]
[1754667363000,0.04187086,175.37,175.34,107.34]
[1754667363197,5.74347086,175.37,175.35,3.09]
[1754667363502,3.19187086,175.37,175.35,3.09]
[1754667363703,3.19187086,175.37,175.36,3.09]
[1754667364305,0.04187086,175.37,175.36,3.09]
[1754667366302,3.18187086,175.37,175.35,6.66391204]
[1754667366499,0.04187086,175.37,175.36,3.01]
[1754667367005,3.14,175.35,175.34,107.34]
[1754667368298,0.04187086,175.37,175.35,3.01]
[1754667368502,0.04187086,175.37,175.36,9.67391204]
[1754667368698,3.14,175.36,175.34,117.01391204]
[1754667369102,2.87709762,175.35,175.34,107.34]
[1754667369307,2.87709762,175.35,175.34,110.35]
[1754667369502,6.01709762,175.36,175.34,107.34]
[1754667369699,2.87709762,175.35,175.34,110.35]
[1754667370509,2.87709762,175.36,175.35,3.01]
[1754667370705,2.87709762,175.36,175.35,9.67391204]
[1754667370903,2.87709762,175.36,175.35,3.01]
[1754667371102,6.01709762,175.36,175.34,342.34]
[1754667371404,2.87709762,175.35,175.34,345.35]
[1754667372102,2.87709762,175.35,175.34,352.01391204]
[1754667372408,2.87709762,175.36,175.35,3.01]
[1754667372905,0.04187086,175.37,175.35,3.01]
[1754667373097,0.04187086,175.37,175.36,15.37571204]
[1754667375106,3.18187086,175.37,175.36,113.82391204]
[1754667375299,3.18187086,175.37,175.36,116.83391204]
[1754667376106,3.18187086,175.37,175.36,107.16]
[1754667376107,7.1467943,175.37,175.36,107.16]
[1754667376408,3.14,175.36,175.31,3.01]
[1754667376604,3.14,175.34,175.32,107.18]
[1754667376806,7.10492344,175.33,175.32,107.18]
[1754667377508,3.96492344,175.33,175.32,116.85391204]
[1754667377906,7.91401397,175.37,175.32,116.85391204]
[1754667378112,7.91401397,175.37,175.36,3.01]
[1754667378313,4.77401397,175.37,175.36,110.25]
[1754667379014,4.77401397,175.37,175.36,107.24]
[1754667379221,7.91401397,175.37,175.36,107.24]
[1754667379407,3.18187086,175.37,175.36,107.24]
[1754667379608,7.91929874,175.37,175.36,110.25]
[1754667380012,3.18187086,175.37,175.36,107.24]
[1754667380508,4.78123733,175.37,175.36,115.9518]
[1754667380713,0.04187086,175.37,175.36,115.9518]
[1754667381014,9.4938219,175.4,175.36,115.9518]
[1754667381015,6.3538219,175.41,175.4,5.7005]
[1754667381318,3.14,175.44,175.41,3.01]
[1754667381515,3.14,175.44,175.42,6.66391204]
[1754667381710,3.14,175.44,175.43,107.28]
[1754667383412,8.8392,175.44,175.43,107.28]
[1754667383613,3.14,175.43,175.42,0.03902925]
[1754667383916,8.8395,175.43,175.42,0.03902925]
[1754667384917,8.8405,175.4,175.39,107.2]
[1754667385218,11.66506003,175.4,175.39,107.2]
[1754667387026,2.82456003,175.4,175.39,116.87391204]
[1754667387521,9.44651826,175.46,175.39,107.2]
[1754667387724,3.14,175.4,175.39,107.2]
[1754667388424,3.14,175.43,175.4,3.01]
[1754667388618,3.14,175.43,175.41,3.01]
[1754667388821,9.44651826,175.46,175.4,9.67391204]
[1754667389224,3.14,175.42,175.4,9.67391204]
[1754667389518,9.44651826,175.45,175.39,107.2]
[1754667389519,3.14,175.44,175.39,107.2]
[1754667389715,3.14,175.43,175.39,107.2]
[1754667389915,5.7005,175.4,175.39,107.2]
[1754667390119,8.8405,175.4,175.39,107.2]
[1754667391316,3.14,175.4,175.39,107.2]
[1754667392124,8.8405,175.4,175.39,107.2]
[1754667392927,3.14,175.4,175.39,107.2]
[1754667393426,8.8405,175.4,175.39,102.92272922]
[1754667394433,5.7009,175.39,175.36,9.67391204]
[1754667394729,3.14,175.37,175.36,116.85391204]
[1754667394932,3.14,175.37,175.36,113.84391204]
[1754667395133,3.14,175.37,175.36,107.18]
[1754667395331,3.14,175.37,175.29,3.01]
[1754667395332,8.84,175.37,175.29,3.01]
[1754667395633,3.14,175.35,175.29,107.18]
[1754667395833,3.14,175.34,175.29,107.18]
[1754667396335,4.14465176,175.33,175.29,110.29]
[1754667396530,3.26,175.31,175.29,110.29]
[1754667396728,4.14465176,175.3,175.29,110.29]
[1754667397427,7.40465176,175.3,175.29,107.18]
[1754667398436,7.40465176,175.3,175.29,104.3268424]
[1754667398928,7.40465176,175.3,175.29,107.4368424]
[1754667398929,4.14465176,175.3,175.29,107.4368424]
[1754667399334,2.91375867,175.3,175.29,104.3268424]
[1754667399932,2.91375867,175.3,175.29,113.1407424]
[1754667400134,6.66391204,175.38,175.29,114.10075444]
[1754667400135,6.13472942,175.36,175.29,114.10075444]
[1754667400336,3.26,175.36,175.31,9.77391204]
[1754667400635,5.7024,175.35,175.32,107.18]
[1754667400832,3.26,175.33,175.32,107.18]
[1754667403332,9.44651826,175.38,175.32,107.18]
[1754667403643,3.26,175.33,175.32,107.18]
[1754667404234,3.26,175.33,175.27,3.11]
[1754667404439,9.44651826,175.35,175.25,3.11]
[1754667404638,3.26,175.27,175.26,107.06]
[1754667405342,3.26,175.32,175.26,113.72391204]
[1754667405540,3.26,175.32,175.29,3.11]
[1754667405737,9.44651826,175.37,175.3,3.11]
[1754667405738,3.26,175.34,175.3,3.11]
[1754667405940,3.26,175.28,175.24,5.7055]
[1754667406146,3.26,175.27,175.25,110.31]
[1754667406342,3.26,175.32,175.25,107.2]
[1754667407241,3.26,175.3,175.25,107.2]
[1754667407442,3.26,175.28,175.25,107.2]
[1754667407644,8.965,175.26,175.25,107.2]
[1754667407942,7.19923713,175.26,175.25,107.2]
[1754667409041,3.93923713,175.26,175.25,110.31]
[1754667409445,3.93923713,175.26,175.25,107.2]
[1754667409644,7.19923713,175.26,175.25,107.2]
[1754667410246,12.90423713,175.26,175.25,107.2]
[1754667410847,7.19923713,175.26,175.25,107.2]
[1754667411040,3.26,175.25,175.23,8.816]
[1754667411236,3.93923713,175.24,175.23,8.816]
[1754667411436,3.93923713,175.24,175.23,3.11]
[1754667411844,3.93923713,175.24,175.23,8.816]
[1754667412046,3.93923713,175.24,175.23,3.11]
[1754667412245,7.19923713,175.24,175.22,107.12]
[1754667412447,3.93923713,175.23,175.22,115.9362]
[1754667413949,7.19923713,175.23,175.22,107.12]
[1754667414643,10.11455343,175.23,175.2,3.11]
[1754667414848,3.93923713,175.22,175.21,110.31]
[1754667415045,3.93923713,175.22,175.21,116.0167]
[1754667415250,3.93005668,175.22,175.21,116.97391204]
[1754667415446,3.93005668,175.22,175.21,116.0167]
[1754667415747,6.84200767,175.25,175.22,3.11]
[1754667415947,3.93005668,175.24,175.23,3.11]
[1754667416148,3.93005668,175.24,175.23,110.33]
[1754667416846,3.93005668,175.24,175.23,116.036]
[1754667417346,3.93005668,175.24,175.23,122.69991204]
[1754667417650,7.19005668,175.24,175.23,107.22]
[1754667417845,7.19005668,175.24,175.23,110.33]
[1754667418052,3.93005668,175.24,175.23,116.036]
[1754667418552,7.19005668,175.24,175.23,110.33]
[1754667418751,7.19005668,175.24,175.23,107.22]
[1754667419145,10.10200767,175.24,175.23,107.22]
[1754667419453,3.93005668,175.24,175.23,110.33]
[1754667420449,3.93005668,175.24,175.23,116.99391204]
[1754667420850,3.93005668,175.24,175.23,122.69991204]
[1754667421356,3.93005668,175.24,175.18,383.2]
[1754667421555,3.26,175.22,175.19,107.3]
[1754667421751,3.26,175.2,175.19,107.3]
[1754667421944,7.19005668,175.2,175.19,107.3]
[1754667422748,7.19005668,175.2,175.19,110.41]
[1754667423160,7.19005668,175.2,175.19,107.3]
[1754667424057,9.63705668,175.2,175.19,107.3]
[1754667424255,10.14040674,175.2,175.19,107.3]
[1754667424451,3.97510734,175.2,175.19,110.41]
[1754667424646,3.97510734,175.2,175.19,116.1173]
[1754667424951,3.26,175.23,175.2,3.11]
[1754667425151,7.23510734,175.22,175.2,3.11]
[1754667425356,7.23510734,175.21,175.2,3.11]
[1754667425557,7.23510734,175.21,175.19,110.41]
[1754667425760,7.23510734,175.2,175.19,107.3]
[1754667425950,7.23510734,175.2,175.19,110.4]
[1754667426660,3.09,175.19,175.17,3.1]
[1754667426854,3.97510734,175.18,175.17,3.1]
[1754667427055,3.97510734,175.18,175.17,110.66]
[1754667427255,3.97510734,175.18,175.17,116.368]
[1754667427455,3.97510734,175.18,175.17,110.66]
[1754667427655,7.06510734,175.18,175.17,107.56]
[1754667428257,7.06510734,175.18,175.17,110.66]
[1754667428460,3.97510734,175.18,175.17,110.66]
[1754667428865,3.97510734,175.18,175.17,116.368]
[1754667429864,7.06510734,175.18,175.17,116.368]
[1754667430161,7.06510734,175.18,175.17,107.56]
[1754667430961,7.06510734,175.18,175.17,113.268]
[1754667431258,3.97510734,175.18,175.17,116.368]
[1754667431957,3.09,175.17,175.09,3.1]